Cogmind - Beta 16 @@@ ROGUE MODE // 2026.01.01 @ 12:50:22 Player: celerysam Result: Destroyed by S-10 Pest with Light Assault Rifle Performance ------------- Evolutions (0) 0 Regions Visited (2) 400 Robots Destroyed (32) 160 Value Destroyed (919) 919 Prototype IDs (14) 280 Alien Tech Used (0) 0 Bonus (0) 0 TOTAL SCORE: 1759 Bonus ------- None Cogmind --------- Core Integrity 0/250 Matter 133/300 Energy 250/250 System Corruption 1% Temperature Cool (0) Movement Treading (480) Ox4 Location -10/Subcaves Parts ------- > --- POWER (1) -------- Ion Engine > --- PROPULSION (2) --- Light Treads > --- UTILITY (2) ------ Huge Storage Unit Makeshift Light Armor Plating > --- WEAPON (2) ------- Mini Grenade Launcher > --- INVENTORY (25) --- Subdweller Power Source Cooling System Small Storage Unit Utility Shielding Gun Armor Scrap Shield Mining Laser SUBCON Basin (Full) Peak State ------------ > --- POWER ------------ Ion Engine > --- PROPULSION ------- Wheel Wheel > --- UTILITY ---------- Huge Storage Unit Makeshift Light Armor Plating > --- WEAPON ----------- Heavy Battle Rifle Mini Grenade Launcher > --- INVENTORY -------- Light Treads Light Treads Cooling System Small Storage Unit Utility Shielding Gun Armor Scrap Shield Mining Laser SUBCON Basin [Rating: 34] Favorites ----------- Power Ion Engine Engine Ion Engine Propulsion Wheel Treads Light Treads Leg Aluminum Leg Wheel Wheel Utility Huge Storage Unit Storage Huge Storage Unit Protection Makeshift Light Armor Plating Weapon Light Cannon Energy Gun Medium Laser Energy Cannon Beam Cannon Ballistic Gun Heavy Battle Rifle Ballistic Cannon Light Cannon Launcher Mini Grenade Launcher Special Weapon Mining Laser Build | -11 -10 -10 ------- Run | Yrd Mat Sub Slots Evolved . | . . . Power . | . . . Propulsion . | . . . Utility . | . . . Weapon . | . . . Parts Attached 39 | 9 19 11 Power 6 | 1 3 2 Engine 6 | 1 3 2 Core . | . . . Reactor . | . . . Propulsion 11 | 4 5 2 Treads 4 | 2 . 2 Leg 2 | 2 . . Wheel 5 | . 5 . Hover . | . . . Flight . | . . . Utility 8 | 1 6 1 Device . | . . . Storage 3 | 1 2 . Processor . | . . . Hackware . | . . . Protection 5 | . 4 1 Artifact . | . . . Weapon 14 | 3 5 6 Energy Gun 2 | 1 1 . Energy Cannon 3 | . 2 1 Ballistic Gun 4 | 2 1 1 Ballistic Cannon 1 | . 1 . Launcher 2 | . . 2 Special Weapon 2 | . . 2 Impact Weapon . | . . . Slashing Weapon . | . . . Piercing Weapon . | . . . Special Melee Weapon . | . . . Unidentified Prototypes . | . . . Parts Lost 15 | . 8 7 Power 4 | . 3 1 Propulsion 5 | . 2 3 Utility 2 | . 2 . Weapon 4 | . 1 3 Highest Loss Streak 2 | . 2 2 To Critical Strikes . | . . . Average Backups 11 | 4 13 10 Power . | . 1 . Propulsion 2 | 3 2 1 Utility 4 | . 3 4 Weapon 4 | . 6 2 Tool/Special . | . . . Unused Backups 19 | . 10 9 Power 1 | . . 1 Propulsion 2 | . 1 1 Utility 8 | . 4 4 Weapon 8 | . 5 3 Tool/Special . | . . . Average Slot Usage (%) 95 | . 93 96 Engine 13 | . 13 14 Treads 4 | . 7 2 Wheel 21 | . 18 23 Storage 14 | . 14 14 Protection 13 | . 12 14 Energy Gun 1 | . 2 . Energy Cannon 4 | . 7 2 Ballistic Gun 9 | . 9 8 Ballistic Cannon 5 | . 6 4 Launcher 2 | . . 5 Special Weapon 3 | . . 6 Peak Build Rating 34 | 6 9 34 Average Rating 18 | 3 7 26 On Entrance 5 | . 6 9 Avg Prop Armor Cover (%) . | . . . Naked Turns . | . . . Heaviest Build 106 | 13 90 106 Greatest Support 40 | 40 40 40 Greatest Overweight (x) 9 | . 9 9 Average Overweight (x) 2 | . 1 4 Largest Inventory Capacity 25 | 8 25 25 Average Capacity 20 | 6 17 23 Most Carried 25 | 6 16 25 Average Carried 18 | 4 13 22 Final Capacity 25 | 8 15 25 Final Carried 23 | 6 15 23 Class Distribution -------------------- 100% | Mutant Dominant Class ---------------- Mutant | -10/Materials Mutant | -10/Subcaves Resources | -11 -10 -10 ----------- Run | Yrd Mat Sub Matter Collected 872 | 183 474 215 Remotely . | . . . Salvage Created 971 | . 750 221 Parts 55 | . 47 8 Haulers Intercepted 2 | . 2 . Recyclers Shooed . | . . . Parts Field Recycled . | . . . Retrieved Matter . | . . . Parts Self-Destructed 2 | . . 2 Prevented . | . . . Parts Restored . | . . . Kills | -11 -10 -10 ------- Run | Yrd Mat Sub Combat Hostiles Destroyed 25 | . 16 9 Guns 9 | . 8 1 Cannons 9 | . 8 1 AOE 7 | . . 7 Classes Destroyed 7 | . 5 2 Worker 3 | . 3 . Hauler 2 | . 2 . Watcher 2 | . 2 . Swarmer 3 | . 3 . Grunt 14 | . 13 1 Sentry 1 | . . 1 Subdweller 7 | . . 7 Best Kill Streak 5 | . 5 3 Combat Bots Only 3 | . 3 3 Max Kills in Single Turn 2 | . 2 2 Gunslinging . | . . . Exploded 2 | . . 2 Melee . | . . . Uniques/NPCs Destroyed . | . . . Combat | -11 -10 -10 -------- Run | Yrd Mat Sub Hostile Shots Fired 163 | . 104 59 Missed 49 | . 31 18 Hits 114 | . 73 41 Projectile 114 | . 73 41 Critical Strikes 1 | . . 1 Damage Taken 2033 | . 1045 988 Core 256 | . 120 136 Absorbed by Shields . | . . . Redirected to Shielding 51 | . 51 . Core Remaining (%) 100 | 100 . . Volleys Fired 115 | . 71 44 Largest 2 | . 2 2 Hottest 100 | . 90 100 Shots Fired 199 | . 140 59 Gun 118 | . 102 16 Cannon 49 | . 38 11 Launcher 18 | . . 18 Special 14 | . . 14 Kinetic 105 | . 82 23 Thermal 76 | . 58 18 Explosive 18 | . . 18 Electromagnetic . | . . . Robot Hit Streak 8 | . 7 8 Robot Miss Streak 5 | . 5 3 Penetration Max . | . . . Secondary Targets 2 | . 2 . Max Gunslinging Chain 1 | . 1 . Shots Hit Robots 110 | . 89 21 Core Hits 50 | . 39 11 Critical Kills . | . . . Critical Parts Destroyed . | . . . Critical Strikes 3 | . 3 . Burn 2 | . 2 . Blast 1 | . 1 . Melee Attacks . | . . . Impact . | . . . Slashing . | . . . Piercing . | . . . Sneak Attacks . | . . . Combat Hostiles . | . . . Follow-up Attacks . | . . . Damage Inflicted 2115 | . 1171 944 Guns 841 | . 748 93 Cannons 478 | . 423 55 Explosions 796 | . . 796 Melee . | . . . Ramming . | . . . Kinetic 685 | . 592 93 Thermal 634 | . 579 55 Explosive 796 | . . 796 Electromagnetic . | . . . Impact . | . . . Slashing . | . . . Piercing . | . . . Highest Corruption 1 | . 1 1 Average Corruption 1 | . 1 1 Corruption Purged . | . . . Corruption Blocked . | . . . Effects 19 | . 5 14 Message Errors 7 | . 2 5 Matter Fused 5 | . 1 4 Heat Flow Errors 1 | . . 1 Energy Discharges 1 | . . 1 Parts Rejected 1 | . 1 . Data Loss (minor) 1 | . . 1 Data Loss (major) 1 | . . 1 Misfires 1 | . . 1 Weapon Failures 1 | . 1 . Overload Shots . | . . . Overflow Damage 55 | . . 55 Projectiles . | . . . Explosions 55 | . . 55 Melee . | . . . Knockbacks 1 | . 1 . Impact . | . . . Kinetic 1 | . 1 . Secondary . | . . . Self-Inflicted Damage 68 | . . 68 Shots 4 | . . 4 Rammed . | . . . Targets Rammed . | . . . Kicked . | . . . Crushed . | . . . Highest Temperature 419 | . 419 181 Average Temperature 114 | . 118 53 Received Heat Transfer 579 | . 495 84 Effects 2 | . 2 . Energy Bleed 1 | . 1 . Damage (minor) 1 | . 1 . Siege Activations . | . . . Martial Activations . | . . . Shielding Activations . | . . . Robots Disrupted . | . . . Combat Hostiles . | . . . Robots Corrupted . | . . . Combat Hostiles . | . . . Parts Fried . | . . . Impact Corruptions . | . . . Robots Melted . | . . . Combat Hostiles . | . . . Parts Melted 2 | . 2 . Heat Transferred 1665 | . 1591 74 Parts Sabotaged . | . . . Parts Stolen . | . . . Parts Stripped . | . . . Power Chain Reactions . | . . . Alert | -11 -10 -10 ------- Run | Yrd Mat Sub Maximum Alert Level . | . . . Low Security (%) 100 | 100 100 . Level 1 . | . . . Level 2 . | . . . Level 3 . | . . . Level 4 . | . . . Level 5 . | . . . High Security . | . . . Max Security . | . . . Peak Influence 75 | . 75 . Initial . | . . . Average 25 | . 27 . Influence Increases 540 | . 470 70 Destroy 0b10 Robot/C 360 | . 320 40 Destroy 0b10 Robot/NC 35 | . 35 . Destroy Leader 78 | . 78 . Successful Hack 21 | . 21 . Disable Machine 15 | . 15 . Destroy Structure 1 | . 1 . Lose Combat Pursuer 30 | . . 30 Influence Decreases 520 | . 435 85 Entered New Map 18 | . . 18 Time Decay 422 | . 365 57 Lost Part 80 | . 70 10 Squads Dispatched 3 | . 3 . Investigation 2 | . 2 . Extermination . | . . . Reinforcement 1 | . 1 . Assault . | . . . Garrison . | . . . Intercept . | . . . Searches Triggered . | . . . Construction Impeded . | . . . Haulers Reinforced . | . . . Active Scanning Responses . | . . . Cargo Convoy Interrupts . | . . . Stealth | -11 -10 -10 --------- Run | Yrd Mat Sub Distress Signals 1 | . 1 . Communications Jammed . | . . . Distress Signals . | . . . Times Spotted 34 | . 19 15 Peak Tracking Total 6 | . 4 6 Tactical Retreats 1 | . . 1 Traps | -11 -10 -10 ------- Run | Yrd Mat Sub Traps Triggered 7 | . 4 3 Indirectly . | . . . Trap Hack Attempts . | . . . Triggered . | . . . Disarmed . | . . . Reprogrammed . | . . . Reused . | . . . Traps Extracted . | . . . Installed . | . . . Triggered . | . . . Machines | -11 -10 -10 ---------- Run | Yrd Mat Sub Machines Disabled 2 | . 1 1 Max in Single Turn 1 | . 1 1 Machines Repaired . | . . . Machines Dismantled . | . . . Machines Sabotaged . | . . . Overloaded Fab Kills . | . . . Hacking | -11 -10 -10 --------- Run | Yrd Mat Sub Machines Accessed 12 | . 8 4 Terminals 6 | . 6 . Fabricators . | . . . Repair Stations . | . . . Recycling Units 2 | . 2 . Scanalyzers . | . . . Garrison Access . | . . . Total Hacks 24 | . 18 6 Successful 18 | . 12 6 Failed 6 | . 6 . Catastrophic . | . . . Database Lockouts . | . . . Manual 9 | . 9 . Terminals 13 | . 13 . Fabricators . | . . . Repair Stations . | . . . Recycling Units 5 | . 5 . Scanalyzers . | . . . Garrison Access . | . . . Terminal Hacks 9 | . 3 6 Record 4 | . 1 3 Prototype ID Bank 1 | . 1 . Open Door 1 | . . 1 Hauler Manifests 1 | . 1 . Proto ID Catalog 1 | . . 1 Release Object 1 | . . 1 Fabricator Hacks . | . . . Repair Station Hacks . | . . . Recycling Unit Hacks 4 | . 4 . Report Inventory 2 | . 2 . Retrieve Components 2 | . 2 . Scanalyzer . | . . . Garrison Access Hacks . | . . . Unauthorized Hacks 5 | . 5 . Terminals 5 | . 5 . Botnet 5 | . 5 . Fabricators . | . . . Repair Stations . | . . . Recycling Units . | . . . Scanalyzers . | . . . Garrison Access . | . . . Data Cores Recovered . | . . . Used . | . . . Hacking Detections 6 | . 6 . Full Trace Events 1 | . 1 . Feedback Events 1 | . 1 . Corruption 1 | . 1 . Feedback Blocked . | . . . Robot Schematics Acquired . | . . . Robots Built . | . . . Authchips . | . . . Time . | . . . Total Robot Build Rating . | . . . Part Schematics Acquired . | . . . Parts Built . | . . . Authchips . | . . . Time . | . . . Total Part Build Rating . | . . . Part Studies Acquired . | . . . Parts Repaired . | . . . Time . | . . . Parts Recycled . | . . . Recycled Matter . | . . . Retrieved Matter . | . . . Retrieved Components 12 | . 12 . Parts Scanalyzed . | . . . Part Schematics Acquired . | . . . Parts Damaged . | . . . Bothacking | -11 -10 -10 ------------ Run | Yrd Mat Sub Used RIF Installer . | . . . Robots Hacked . | . . . Non-combat . | . . . Combat . | . . . Robot Hacks Applied . | . . . Relay Couplers Released . | . . . Fabnet Peak Effective % . | . . . Robots Rewired . | . . . Allies Hacked . | . . . Hacks Repelled . | . . . Allies | -11 -10 -10 -------- Run | Yrd Mat Sub Total Allies . | . . . Largest Group . | . . . Highest-Rated Group . | . . . Highest-Rated Ally . | . . . Total Orders . | . . . Ally Attacks . | . . . Total Damage . | . . . Kills . | . . . Allies Corrupted . | . . . Allies Melted . | . . . Intel | -11 -10 -10 ------- Run | Yrd Mat Sub Active Infowar (turns) . | . . . Robot Analysis Total . | . . . Derelict Logs Recovered 1 | . . 1 Drone Launches . | . . . Drone Recoveries . | . . . Exploration | -11 -10 -10 ------------- Run | Yrd Mat Sub Turns Passed 3196 | 61 1301 1834 Spaces Moved 1928 | 39 783 1106 Core 10 | 9 1 . Treads 174 | 1 140 33 Legs 33 | 29 4 . Wheels 1711 | . 638 1073 Hover . | . . . Flight . | . . . Fastest Speed 50 | 50 80 95 Average Speed 139 | 104 124 150 Slowest Speed 500 | 160 500 320 Overloaded Moves . | . . . Propulsion Burnouts . | . . . Robots Hopped . | . . . Potential Cave-ins . | . . . Cave-ins Triggered . | . . . Exploration Rate (%) 59 | 4 98 75 Regions Visited 2 Branch Regions 1 Pre-discovered Areas . | . . . Known Exits Taken . | . . . Unknown Exits Taken 2 | 1 1 . Scrap Searched 6 | . . 6 Spaces Dug . | . . . Terrain Destroyed 119 | . . 119 Melee . | . . . Projectile 1 | . . 1 AOE 118 | . . 118 Terrain Rammed . | . . . Walls Destroyed . | . . . Machines Disabled . | . . . Actions | -11 -10 -10 --------- Run | Yrd Mat Sub Total 2229 | 56 987 1186 Wait 61 | . 53 8 Move 1926 | 38 782 1106 Hop . | . . . Pick Up 50 | 8 37 5 Fast Attach 8 | 4 1 3 Attach 18 | 3 12 3 Detach 1 | 1 . . Swap 20 | 2 12 6 Drop 30 | . 19 11 Fire 115 | . 71 44 Melee . | . . . Ram . | . . . Kick . | . . . Crush . | . . . Escape Stasis . | . . . Rewire . | . . . Trap . | . . . Miscellaneous . | . . . Route ------- -11/Scrapyard -10/Materials (discovered 5 exits: [*Mat x3] / [*Min] / *Sub) -10/Subcaves (discovered 4 exits: [*Mat x2] / [*Rec] / [*Scr]) History --------- Turn | Location | Event 11 | -11/Scrapyard | Discovered new exit (range 14) 62 | -11/Scrapyard | Entered Materials 318 | -10/Materials | Build established: Mutant 802 | -10/Materials | Discovered new exit (range 15) 944 | -10/Materials | Discovered new exit (range 5) 959 | -10/Materials | Discovered new exit (range 3) 1087 | -10/Materials | Discovered new exit (range 3) 1155 | -10/Materials | Discovered new exit (range 15) 1363 | -10/Materials | Entered Subcaves 1364 | -10/Subcaves | Approached by a straggling Scientist 1464 | -10/Subcaves | Core integrity fell below 50% 1529 | -10/Subcaves | Shifting Twisted Machinery released Shrapnel Trap 1543 | -10/Subcaves | Shifting Twisted Machinery released Spk. Treads 1552 | -10/Subcaves | Discovered new exit (range 8) 1711 | -10/Subcaves | Visited Clippyterm 1715 | -10/Subcaves | Learned Factory trap positions 1836 | -10/Subcaves | Found SUBCON Basin 1872 | -10/Subcaves | Discovered new exit (range 6) 1946 | -10/Subcaves | Disturbed a concealed Subdweller 2079 | -10/Subcaves | Learned Materials security intel 2246 | -10/Subcaves | Visited 4L-MR0's lab 2260 | -10/Subcaves | Found Gun Armor 2783 | -10/Subcaves | Shifting Twisted Machinery released Sub. Machine Gun 2785 | -10/Subcaves | Shifting Twisted Machinery released Mak. Leg 3095 | -10/Subcaves | Core integrity fell below 20% 3194 | -10/Subcaves | Discovered new exit (range 11) 3197 | -10/Subcaves | Destroyed by S-10 Pest with Light Assault Rifle Last Messages --------------- 03057_ The unstable cave ceiling collapses. 03058_ Destroyed Scrap Shield. 03060_ AT-Y86(R) destroyed. 03062_ The unstable cave ceiling collapses. 03075_ UN-9PT(R) destroyed. 03076_ The unstable cave ceiling collapses. 03094_ Acquired 22 matter. 03095_ The unstable cave ceiling collapses. 03110_ Acquired 11 matter. 03119_ The unstable cave ceiling collapses. 03148_ Hvy. Battle Rifle destroyed. 03148_ Destroyed Hvy. Battle Rifle. 03152_ The unstable cave ceiling collapses. 03153_ Destroyed Sub. Monowheel. 03157_ YW-ED9(R) destroyed. 03160_ The unstable cave ceiling collapses. 03192_ S-10 Pest springs to life. 03194_ EXIT=FOUND 03195_ Lgt. Treads destroyed. 03197_ System corrupted: Matter fused (-9). Map ----- +----------------------------------------------------+ | ??????????????????????????????# ## ## | | ??????????????????????????????# ## #### | | ??????????????????????????????# ## | | ??????????????????????????????# #### #### | | ??????????????????????????????# ##??# #??? | | ?????????????????????????????# #???#### # #??? | | ?????????????????????????????# ??????# # ##?? | | ?????????????????????????????# ??????# ## #?? | | ?????????????????????????????# ##?????## ### ### | | ?????????????????????????????# #?####### ### | | ?????????????????????????????##?## # # | | ????????????????????????????????# # | | ???????????????????????????????## [ | | ???????????????????????????##### & | | ????????????????????????#### # & | | ????????????????????????# | | ????????????????????????# !## ## | | ???????????????????????## ## ## | | ???????????????????????# "### & ### # | | ???????????????????????## # ## # | | ????????????????????????# ## # # | | ????????????????????????# #### " # # | | ???????????????????????## # " ### # | | ???????????????????????# # # ## | | ??????????????????????##ss ###### ### | | ??????????????????????#s @ ##????? ## #? | | ?????????????????"t ""s##??????? ##? | | ??????????????#< #????????### #??## | | ??????????????##""t ""##??????????# ????? | | ???????????????#" ###?????????????? ????? | | ???????????????#" ?????????????????????????? | | ???????????????#""" "?????????????????????????? | | ???????????????######??????????????????????????? | | ???????????????????????????????????????????????? | | ???????????????????????????????????????????????? | | ???????###???????????????????????????????????????? | | ??????# ##??????????????????????????????????????? | | ?????# #??????????????????????????????????????? | | ??### #??????????????????????????????????????? | | ??# #??????????????????????????????????????? | | ??# #???????????????????????????????????????? | | ?## #???????????????????????????????????????? | | ## ##???????????????????????????????????????? | | ###????????????????????????????????????????? | | ##??????????????????????????????????????????? | | #???????????????????????????????????????????? | | ##???????????????????????????????????????????? | | ##????????????????????????????????????????????? | | ##?????????????????????????????????????????????? | | ###??????????????????????????????????????????????? | +----------------------------------------------------+ Best States ------------- Heat Dissipation 25 Energy Generation 10 Energy Capacity 250 Matter Stores 300 Matter Capacity 300 Sight Range 16 Terrain Scan Density 10 Armor Coverage 150 Utility Shielding 33 Weapon Shielding 33 Evasion (%) 50 Recoil Reduction 2 Item Schematics ----------------- None Robot Schematics ------------------ None Fabricated ------------ Nothing Repaired ---------- Nothing Studied --------- None Alien Tech Used ----------------- None Achievements -------------- Resistances Are Futile Challenges ------------ None Game ------ Seed MagneticStorageTether Manual? 0 Play Time 00:26:50 Cumulative 284.1 hours Start 2026.01.01 @ 12:21:08 End 2026.01.01 @ 12:50:22 Sessions 1 Manual Loads 0 Difficulty Rogue Special Mode None Game No. 450 Rogue 450 Adventurer 0 Explorer 0 Win Type - Total 1 Types 1/0/0/0/0/0/0/0/0/0 Lore% 65 Gallery% 63 Achievement% 31 Wizard Run 0 Options --------- Layout 1 ASCII 0 Keyboard 0 Movement Mouse Keybinds 0 Fullscreen 2 Font 24/Smallcaps Map View 50x35 Zoom Use 0% Tactical HUD 1 Map Filters NONE Filters NONE Steam 1 RUN: 8d22daa9-86cc-4a0c-a5e6-e303aca82c65